fUST/lending_fUST_20260415
["ID","MTS","AMOUNT","RATE_DAILY","PERIOD"]
[420527778,1776251439539,-464.47415481,7.598e-05,2]
[420527779,1776251439556,-500.0,7.598e-05,2]
[420527780,1776251439570,-500.0,7.598e-05,2]
[420527781,1776251439581,-500.0,7.598e-05,2]
[420527782,1776251439595,-500.0,7.598e-05,2]
[420527783,1776251439611,-500.0,7.598e-05,2]
[420527784,1776251439621,-500.0,7.598e-05,2]
[420527785,1776251439633,-500.0,7.598e-05,2]
[420527786,1776251439645,-500.0,7.598e-05,2]
[420527787,1776251439658,-155.80458698,7.598e-05,2]
[420527788,1776251439670,-500.0,7.598e-05,2]
[420527789,1776251439681,-500.0,7.598e-05,2]
[420527790,1776251439694,-500.0,7.599e-05,2]
[420527791,1776251439707,-195.39977189,7.599e-05,2]
[420527792,1776251439716,-500.0,7.599e-05,2]
[420527793,1776251439726,-500.0,7.599e-05,2]
[420527794,1776251439738,-500.0,7.599e-05,2]
[420527795,1776251439751,-500.0,7.599e-05,2]
[420527796,1776251439761,-500.0,7.599e-05,2]
[420527797,1776251439773,-500.0,7.599e-05,2]
[420527798,1776251439787,-500.0,7.599e-05,2]
[420527799,1776251439798,-202.92135681,7.599e-05,2]
[420527800,1776251439807,-500.0,7.599e-05,2]
[420527801,1776251439818,-500.0,7.599e-05,2]
[420527802,1776251439831,-500.0,7.599e-05,2]
[420527803,1776251439842,-500.0,7.599e-05,2]
[420527804,1776251439852,-500.0,7.599e-05,2]
[420527805,1776251439862,-542.04494976,7.599e-05,2]
[420527806,1776251439875,-500.0,7.599e-05,2]
[420527807,1776251439886,-500.0,7.599e-05,2]
[420527808,1776251439899,-500.0,7.599e-05,2]
[420527809,1776251439909,-500.0,7.599e-05,2]
[420527810,1776251439925,-500.0,7.599e-05,2]
[420527811,1776251439936,-429.43146484,7.599e-05,2]
[420527812,1776251439948,-89521.58104375,7.6e-05,2]
[420527813,1776251439971,-941.81791522,7.6e-05,2]
[420527814,1776251439987,-17616.7543368,7.6e-05,2]
[420527815,1776251439996,-196.4268325,7.658e-05,2]
[420527816,1776251440010,-250.22839397,7.658e-05,2]
[420527817,1776251440021,-500.0,7.673e-05,2]
[420527818,1776251440035,-500.0,7.673e-05,2]
[420527819,1776251440046,-500.0,7.673e-05,2]
[420527820,1776251440057,-158.24910633,7.673e-05,2]
[420527821,1776251440069,-160.21149199,7.673e-05,2]
[420527822,1776251440084,-160.04847797,7.673e-05,2]
[420527823,1776251440095,-158.04787198,7.673e-05,2]
[420527824,1776251440105,-500.0,7.673e-05,2]
[420527825,1776251440125,-500.0,7.673e-05,2]
[420527826,1776251440135,-500.0,7.673e-05,2]
[420527827,1776251440147,-158.24857987,7.673e-05,2]
[420527828,1776251440170,-167.56275401,7.673e-05,2]
[420527829,1776251440180,-158.24910558,7.673e-05,2]
[420527830,1776251440204,-500.0,7.673e-05,2]
[420527831,1776251440216,-500.0,7.673e-05,2]
[420527832,1776251440226,-500.0,7.673e-05,2]
[420527833,1776251440251,-500.0,7.673e-05,2]
[420527834,1776251440267,-500.0,7.673e-05,2]
[420527835,1776251440291,-250.22839393,7.681e-05,2]
[420527836,1776251440306,-11946.15542465,7.7e-05,2]
[420527878,1776251441273,-657.01944389,7.7e-05,2]
[420527882,1776251441330,-1019.05201729,7.7e-05,2]
[420527896,1776251443971,-5352.49999837,7.7e-05,2]
[420527897,1776251443987,-468.942,7.7e-05,2]
[420527898,1776251444122,-1179.67946753,7.7e-05,2]
[420527899,1776251444146,-3256.23330091,7.7e-05,2]
[420527908,1776251447057,-24700.2526107,7.7e-05,2]
[420527909,1776251447207,-45966.56643804,7.7e-05,2]
[420527910,1776251447229,-74259.82848203,7.7e-05,2]
[420527911,1776251447270,-276.5150003,7.7e-05,2]
[420527913,1776251907109,-5000.0,6.614e-05,2]
[420527915,1776251917298,-5000.0,6.548e-05,2]
[420527916,1776251924465,-514.0,6.614e-05,2]
[420527917,1776251924492,-156.56923548,6.648e-05,2]
[420527918,1776251924522,-300.0,6.68e-05,2]
[420527919,1776251924551,-300.0,6.681e-05,2]
[420527920,1776251924739,-1200.0,6.681e-05,2]
[420527921,1776251932798,2529.43076452,6.7e-05,2]
[420527922,1776251959218,-229.23486935,6.7e-05,2]
[420527923,1776251959255,-515.0,6.7e-05,2]
[420527924,1776251967840,-1580.14532001,6.749e-05,2]
[420527925,1776251982481,789.19246384,6.849e-05,2]
[420527927,1776252106681,-433.6826468,7.061e-05,2]
[420527932,1776252431843,200.0,9e-05,120]
[420527934,1776252631950,-171.01062976,6.064e-05,2]
[420527935,1776252631992,-507.0,6.064e-05,2]
[420527936,1776252632025,-153.43785077,6.251e-05,2]
[420527937,1776252632049,-496.55531816,7.293e-05,2]
[420527938,1776252632078,-1984.23505137,7.293e-05,2]
[420527939,1776252632103,-500.0,7.533e-05,2]
[420527940,1776252632126,-233.3565903,7.533e-05,2]
[420527941,1776252632154,-266.6434097,7.533e-05,2]
[420527942,1776252632170,-503.67026779,7.533e-05,2]
[420527943,1776252632188,-500.0,7.533e-05,2]
[420527944,1776252632204,-500.0,7.533e-05,2]
[420527945,1776252632214,-500.0,7.533e-05,2]
[420527946,1776252632227,-158.24793138,7.533e-05,2]
[420527947,1776252632242,-500.0,7.533e-05,2]
[420527948,1776252632258,-500.0,7.533e-05,2]
[420527949,1776252632270,-500.0,7.533e-05,2]
[420527950,1776252632287,-500.0,7.533e-05,2]
[420527951,1776252632302,-135.76839113,7.533e-05,2]
[420527952,1776252632840,-364.23160887,7.533e-05,2]
[420527953,1776252632869,-500.0,7.533e-05,2]
[420527954,1776252632907,-300.0,7.558e-05,2]
[420527955,1776252632948,-500.0,7.559e-05,2]
[420527956,1776252632978,-500.0,7.559e-05,2]
[420527957,1776252633022,-500.0,7.559e-05,2]
[420527958,1776252633049,-500.0,7.559e-05,2]
[420527959,1776252633069,-500.0,7.559e-05,2]
[420527960,1776252633087,-500.0,7.559e-05,2]
[420527961,1776252633101,-500.0,7.559e-05,2]
[420527962,1776252633117,-335.77340973,7.559e-05,2]
[420528073,1776252638254,-164.22659027,7.559e-05,2]
[420528074,1776252638268,-500.0,7.559e-05,2]
[420528075,1776252638286,-209.91785328,7.559e-05,2]
[420528076,1776252638463,-290.08214672,7.559e-05,2]
[420528077,1776252638487,-500.0,7.559e-05,2]
[420528078,1776252638498,-500.0,7.559e-05,2]
[420528079,1776252638513,-470.68030373,7.559e-05,2]
[420528080,1776252638532,-520.05527273,7.559e-05,2]
[420528081,1776252638545,-499.14082002,7.559e-05,2]
[420528082,1776252638555,-500.0,7.559e-05,2]
[420528083,1776252638571,-578.08653015,7.559e-05,2]
[420528084,1776252638589,-500.0,7.559e-05,2]
[420528085,1776252638603,-303.81423026,7.559e-05,2]
[420528086,1776252638625,-500.0,7.559e-05,2]
[420528087,1776252638637,-500.0,7.559e-05,2]
[420528088,1776252638654,-500.0,7.559e-05,2]
[420528089,1776252638671,-451.56247966,7.559e-05,2]
[420528090,1776252638685,-501.92628417,7.559e-05,2]
[420528091,1776252638701,-500.0,7.559e-05,2]
[420528092,1776252638721,-500.0,7.559e-05,2]
[420528093,1776252638733,-500.0,7.559e-05,2]
[420528094,1776252638753,-500.0,7.559e-05,2]
[420528095,1776252638767,-500.0,7.559e-05,2]
[420528096,1776252638777,-500.0,7.559e-05,2]
[420528097,1776252638795,-500.0,7.559e-05,2]
[420528098,1776252638812,-500.0,7.559e-05,2]
[420528099,1776252638835,-500.0,7.559e-05,2]
[420528100,1776252638850,-500.0,7.559e-05,2]
[420528101,1776252638868,-438.9823194,7.559e-05,2]
[420528102,1776252638878,-500.0,7.559e-05,2]
[420528103,1776252638891,-500.0,7.559e-05,2]
[420528104,1776252638912,-239.533843,7.559e-05,2]
[420528105,1776252638923,-500.0,7.559e-05,2]
[420528106,1776252638934,-500.0,7.559e-05,2]
[420528107,1776252638955,-279.47621262,7.559e-05,2]
[420528108,1776252638969,-500.0,7.559e-05,2]
[420528109,1776252638985,-500.0,7.559e-05,2]
[420528110,1776252639011,-500.0,7.559e-05,2]
[420528111,1776252639027,-500.0,7.559e-05,2]
[420528112,1776252639047,-500.0,7.559e-05,2]
[420528113,1776252639065,-12801.89965686,7.56e-05,2]
[420528114,1776252639087,-5745.35566392,7.56e-05,2]
[420528115,1776252639102,-131847.82763675,7.56e-05,2]
[420528116,1776252639125,-678972.77700189,7.56e-05,2]
[420528117,1776252639142,-488.86841587,7.6e-05,2]
[420528118,1776252639153,-433.705,7.659e-05,2]
[420528119,1776252639173,-189.5850088,7.659e-05,2]
[420528120,1776252639190,-2742.1527583,7.66e-05,2]
[420528121,1776252639202,-38997.6547495,7.66e-05,2]
[420528122,1776252639226,-2350.41665,7.66e-05,2]
[420528123,1776252639237,-10643.1318528,7.66e-05,2]
[420528124,1776252639257,-153.0,7.749e-05,2]
[420528125,1776252639279,-600.0,7.811e-05,2]
[420528126,1776252639291,-500.0,7.873e-05,2]
[420528127,1776252639305,-500.0,7.873e-05,2]
[420528128,1776252639323,-192.139414,7.98e-05,2]
[420528129,1776252639336,-192.139414,7.98e-05,2]
[420528130,1776252639346,-192.139414,7.98e-05,2]
[420528131,1776252639358,-192.139414,7.98e-05,2]
[420528132,1776252639377,-150.13703639,7.98e-05,2]
[420528133,1776252639399,-3000.0,7.98e-05,2]
[420528134,1776252639418,-537.6845,7.98e-05,2]
[420528135,1776252639431,-162.87155245,7.98e-05,2]
[420528136,1776252639448,-162.73624821,7.98e-05,2]
[420528137,1776252639473,-3000.0,7.98e-05,2]
[420528138,1776252639513,-450.3059412,7.98e-05,2]
[420528139,1776252639544,-3000.0,7.98e-05,2]
[420528140,1776252639647,-151.97451239,7.98e-05,2]
[420528142,1776252639722,-3000.0,7.98e-05,2]
[420528143,1776252639776,-156.89658255,7.98e-05,2]
[420528145,1776252639794,-3000.0,7.98e-05,2]
[420528147,1776252639820,-3000.0,7.98e-05,2]
[420528148,1776252639838,-3000.0,7.98e-05,2]
[420528149,1776252639854,-3000.0,7.98e-05,2]
[420528150,1776252639874,-3000.0,7.98e-05,2]
[420528151,1776252639888,-2150.738,7.98e-05,2]
[420528152,1776252639906,-3000.0,7.98e-05,2]
[420528153,1776252639924,-3000.0,7.98e-05,2]
[420528154,1776252639935,-3000.0,7.98e-05,2]
[420528155,1776252639948,-3000.0,7.98e-05,2]
[420528156,1776252639958,-3000.0,7.98e-05,2]
[420528157,1776252639969,-3000.0,7.98e-05,2]
[420528158,1776252639986,-3000.0,7.98e-05,2]
[420528159,1776252639996,-3000.0,7.98e-05,2]
[420528160,1776252640006,-3000.0,7.98e-05,2]
[420528161,1776252640016,-537.6845,7.98e-05,2]
[420528162,1776252640028,-16769.999999,8e-05,2]
[420528163,1776252640038,-150.8247325,8e-05,2]
[420528164,1776252640048,-598.51687483,8e-05,2]
[420528165,1776252640058,-1440.83566392,8e-05,2]
[420528166,1776252640068,-192.139414,8e-05,2]
[420528167,1776252640080,-192.139414,8e-05,2]
[420528168,1776252640091,-192.139414,8e-05,2]
[420528169,1776252640101,-192.139414,8e-05,2]
[420528170,1776252640111,-151.0,8e-05,2]
[420528171,1776252640120,-151.0,8e-05,2]
[420528172,1776252640130,-151.0,8e-05,2]
[420528173,1776252640140,-557.5788265,8.035e-05,2]
[420528174,1776252640150,-251.93589074,8.037e-05,2]
[420528175,1776252640159,-1000.0,8.081e-05,2]
[420528176,1776252640169,-161.24705798,8.081e-05,2]
[420528177,1776252640179,-500.0,8.081e-05,2]
[420528178,1776252640189,-501.60568996,8.081e-05,2]
[420528179,1776252640198,-1000.0,8.081e-05,2]
[420528180,1776252640208,-1000.0,8.081e-05,2]
[420528181,1776252640217,-2700.00912364,8.081e-05,2]
[420528182,1776252640228,-885.69103426,8.081e-05,2]
[420528183,1776252640238,-3539.22137289,8.081e-05,2]
[420528184,1776252640248,-259.72231623,8.081e-05,2]
[420528185,1776252640258,-474.16704697,8.081e-05,2]
[420528186,1776252640267,-1894.77151969,8.081e-05,2]
[420528187,1776252640277,-3153.61308552,8.081e-05,2]
[420528188,1776252640287,-723.87792632,8.081e-05,2]
[420528189,1776252640296,-578.20924308,8.09e-05,2]
[420528190,1776252640306,-194.15440187,8.101e-05,2]
[420528191,1776252640315,-500.0,8.103e-05,2]
[420528192,1776252640325,-500.0,8.103e-05,2]
[420528193,1776252640335,-192.139414,8.121e-05,2]
[420528194,1776252640345,-192.139414,8.121e-05,2]
[420528195,1776252640355,-192.139414,8.121e-05,2]
[420528196,1776252640364,-192.139414,8.121e-05,2]
[420528197,1776252640374,-599.60298507,8.145e-05,2]
[420528198,1776252640383,-621.78829552,8.2e-05,2]
[420528199,1776252640393,-454.92564372,8.219e-05,2]
[420528200,1776252640402,-150.0,8.219e-05,2]
[420528201,1776252640411,-150.0,8.219e-05,2]
[420528202,1776252640421,-150.0,8.219e-05,2]
[420528203,1776252640430,-150.0,8.219e-05,2]
[420528204,1776252640440,-150.0,8.219e-05,2]
[420528205,1776252640449,-151.0,8.219e-05,2]
[420528206,1776252640459,-151.0,8.219e-05,2]
[420528207,1776252640468,-151.0,8.219e-05,2]
[420528208,1776252640478,-181.05666391,8.251e-05,2]
[420528209,1776252640488,-644.79446246,8.255e-05,2]
[420528210,1776252640497,-1677.05382507,8.3e-05,2]
[420528211,1776252640507,-160.0,8.31e-05,2]
[420528212,1776252640517,-160.0,8.31e-05,2]
[420528213,1776252640527,-161.09723288,8.31e-05,2]
[420528214,1776252640536,-668.65185757,8.31e-05,2]
[420528215,1776252640547,-739.80000001,8.363e-05,2]
[420528216,1776252640557,-693.3919763,8.365e-05,2]
[420528217,1776252640567,-2000.0,8.4e-05,2]
[420528218,1776252640577,-719.04747942,8.42e-05,2]
[420528219,1776252640587,-1000.0,8.421e-05,2]
[420528220,1776252640596,-1000.0,8.421e-05,2]
[420528221,1776252640606,-745.65223616,8.475e-05,2]
[420528222,1776252640616,-150.13703635,8.485e-05,2]
[420528223,1776252640625,-2000.0,8.5e-05,2]
[420528224,1776252640635,-151.0,8.528e-05,2]
[420528225,1776252640645,-151.0,8.528e-05,2]
[420528226,1776252640656,-250.78233,8.528e-05,2]
[420528227,1776252640666,-2230.315306,8.528e-05,2]
[420528228,1776252640675,-154.14977173,8.529e-05,2]
[420528229,1776252640685,-773.2413689,8.53e-05,2]
[420528230,1776252640695,-801.85129955,8.585e-05,2]
[420528231,1776252640707,-720.0,8.592e-05,2]
[420528232,1776252640717,-2000.0,8.6e-05,2]
[420528233,1776252640727,-1500.0,8.628e-05,2]
[420528234,1776252640738,-1500.0,8.628e-05,2]
[420528235,1776252640751,-1500.0,8.628e-05,2]
[420528236,1776252640761,-831.51979763,8.64e-05,2]
[420528237,1776252640771,-8701.5529496,8.65e-05,2]
[420528238,1776252640786,-2374.8037148,8.65e-05,2]
[420528239,1776252640796,-507.06063846,8.651e-05,2]
[420528240,1776252640807,-155.0,8.689e-05,2]
[420528241,1776252640817,-151.0,8.695e-05,2]
[420528242,1776252640831,-192.139414,8.695e-05,2]
[420528243,1776252640841,-192.139414,8.695e-05,2]
[420528244,1776252640851,-192.139414,8.695e-05,2]
[420528245,1776252640860,-192.139414,8.695e-05,2]
[420528246,1776252640878,-862.28603014,8.695e-05,2]
[420528247,1776252640888,-2000.0,8.7e-05,2]
[420528248,1776252640898,-894.19061326,8.75e-05,2]
[420528249,1776252640916,-500.0,8.786e-05,2]
[420528250,1776252640928,-2000.0,8.8e-05,2]
[420528251,1776252640939,-1926.92636992,8.822e-05,2]
[420528252,1776252640951,-1941.5789032,8.871e-05,2]
[420528253,1776252640970,-529.8903332,8.871e-05,2]
[420528254,1776252640981,-2000.0,8.9e-05,2]
[420528255,1776252640995,-155.0,8.96e-05,2]
[420528256,1776252641014,-155.0,8.96e-05,2]
[420528257,1776252641028,-224.61646007,8.96e-05,2]
[420528258,1776252641042,-155.59173037,8.96e-05,2]
[420528259,1776252641062,-1154.26315445,8.968e-05,2]
[420528260,1776252641080,-1408.0,8.975e-05,2]
[420528261,1776252641096,-1120.532,8.975e-05,2]
[420528262,1776252641116,-645.0,8.975e-05,2]
[420528263,1776252641130,-739.0,8.975e-05,2]
[420528264,1776252641155,-184.0,8.975e-05,2]
[420528265,1776252641181,-441.214,8.975e-05,2]
[420528266,1776252641206,-150.13703635,8.99e-05,2]
[420528267,1776252641225,-150.47,9.011e-05,2]
[420528268,1776252641258,-150.494,9.011e-05,2]
[420528269,1776252641301,-150.0,9.011e-05,2]
[420528270,1776252641356,-151.0,9.012e-05,2]
[420528271,1776252641430,-151.0,9.012e-05,2]
[420528272,1776252641502,-500.0,9.027e-05,2]
[420528273,1776252641534,-800.0,9.035e-05,2]
[420528274,1776252641557,-2312.83697232,9.076e-05,2]
[420528275,1776252641598,-500.0,9.085e-05,2]
[420528276,1776252641623,-500.0,9.085e-05,2]
[420528277,1776252641653,-166.0,9.12e-05,2]
[420528278,1776252641689,-537.55870063,9.12e-05,2]
[420528279,1776252641733,-648.0,9.12e-05,2]
[420528280,1776252641769,-155.0,9.12e-05,2]
[420528281,1776252641779,-648.0,9.12e-05,2]
[420528282,1776252641809,-155.0,9.12e-05,2]
[420528283,1776252641822,-155.0,9.12e-05,2]
[420528284,1776252641847,-205.7032219,9.12e-05,2]
[420528285,1776252641871,-155.0,9.12e-05,2]
[420528286,1776252641912,-648.0,9.12e-05,2]
[420528287,1776252641950,-153.94944058,9.12e-05,2]
[420528288,1776252641977,-648.0,9.12e-05,2]
[420528289,1776252642012,-648.0,9.12e-05,2]
[420528290,1776252642046,-648.0,9.12e-05,2]
[420528292,1776252642088,-648.0,9.12e-05,2]
[420528293,1776252642263,-648.0,9.12e-05,2]
[420528294,1776252642285,-648.0,9.12e-05,2]
[420528295,1776252642309,-648.0,9.12e-05,2]
[420528296,1776252642343,-648.0,9.12e-05,2]
[420528297,1776252642354,-648.0,9.12e-05,2]
[420528298,1776252642383,-648.0,9.12e-05,2]
[420528299,1776252642398,-648.0,9.12e-05,2]
[420528301,1776252642423,-648.0,9.12e-05,2]
[420528304,1776252642437,-648.0,9.12e-05,2]
[420528307,1776252642448,-648.0,9.12e-05,2]
[420528310,1776252642468,-648.0,9.12e-05,2]
[420528313,1776252642480,-648.0,9.12e-05,2]
[420528314,1776252642489,-648.0,9.12e-05,2]
[420528315,1776252642505,-648.0,9.12e-05,2]
[420528316,1776252642518,-648.0,9.12e-05,2]
[420528317,1776252642540,-648.0,9.12e-05,2]
[420528318,1776252642555,-648.0,9.12e-05,2]
[420528319,1776252642567,-648.0,9.12e-05,2]
[420528320,1776252642578,-648.0,9.12e-05,2]
[420528321,1776252642593,-648.0,9.12e-05,2]
[420528323,1776252642606,-648.0,9.12e-05,2]
[420528325,1776252642619,-648.0,9.12e-05,2]
[420528326,1776252642631,-323.22924378,9.12e-05,2]
[420528327,1776252642642,-340.0,9.12e-05,2]
[420528328,1776252642654,-340.0,9.12e-05,2]
[420528330,1776252642664,-340.0,9.12e-05,2]
[420528333,1776252642678,-340.0,9.12e-05,2]
[420528335,1776252642688,-340.0,9.12e-05,2]
[420528337,1776252642699,-340.0,9.12e-05,2]
[420528338,1776252642709,-340.0,9.12e-05,2]
[420528339,1776252642722,-340.0,9.12e-05,2]
[420528340,1776252642732,-340.0,9.12e-05,2]
[420528341,1776252642742,-340.0,9.12e-05,2]
[420528342,1776252642752,-340.0,9.12e-05,2]
[420528343,1776252642762,-340.0,9.12e-05,2]
[420528344,1776252642773,-340.0,9.12e-05,2]
[420528345,1776252642783,-340.0,9.12e-05,2]
[420528346,1776252642793,-340.0,9.12e-05,2]
[420528347,1776252642804,-340.0,9.12e-05,2]
[420528348,1776252642814,-340.0,9.12e-05,2]
[420528349,1776252642824,-340.0,9.12e-05,2]
[420528350,1776252642834,-340.0,9.12e-05,2]
[420528351,1776252642844,-340.0,9.12e-05,2]
[420528352,1776252642854,-340.0,9.12e-05,2]
[420528353,1776252642864,-340.0,9.12e-05,2]
[420528354,1776252642873,-340.0,9.12e-05,2]
[420528355,1776252642883,-340.0,9.12e-05,2]
[420528356,1776252642894,-340.0,9.12e-05,2]
[420528357,1776252642903,-340.0,9.12e-05,2]
[420528358,1776252642913,-340.0,9.12e-05,2]
[420528359,1776252642923,-340.0,9.12e-05,2]
[420528360,1776252642932,-340.0,9.12e-05,2]
[420528361,1776252642942,-340.0,9.12e-05,2]
[420528362,1776252642952,-340.0,9.12e-05,2]
[420528363,1776252642961,-340.0,9.12e-05,2]
[420528364,1776252642971,-340.0,9.12e-05,2]
[420528365,1776252642981,-340.0,9.12e-05,2]
[420528366,1776252642991,-340.0,9.12e-05,2]
[420528367,1776252643000,-340.0,9.12e-05,2]
[420528368,1776252643010,-340.0,9.12e-05,2]
[420528369,1776252643019,-340.0,9.12e-05,2]
[420528370,1776252643029,-340.0,9.12e-05,2]
[420528371,1776252643039,-340.0,9.12e-05,2]
[420528372,1776252643048,-340.0,9.12e-05,2]
[420528373,1776252643058,-340.0,9.12e-05,2]
[420528374,1776252643068,-340.0,9.12e-05,2]
[420528375,1776252643078,-340.0,9.12e-05,2]
[420528376,1776252643087,-340.0,9.12e-05,2]
[420528377,1776252643097,-340.0,9.12e-05,2]
[420528378,1776252643108,-340.0,9.12e-05,2]
[420528379,1776252643118,-340.0,9.12e-05,2]
[420528380,1776252643128,-340.0,9.12e-05,2]
[420528381,1776252643138,-340.0,9.12e-05,2]
[420528382,1776252643149,-340.0,9.12e-05,2]
[420528383,1776252643158,-340.0,9.12e-05,2]
[420528384,1776252643168,-340.0,9.12e-05,2]
[420528385,1776252643178,-340.0,9.12e-05,2]
[420528386,1776252643188,-340.0,9.12e-05,2]
[420528387,1776252643198,-340.0,9.12e-05,2]
[420528388,1776252643207,-340.0,9.12e-05,2]
[420528389,1776252643218,-340.0,9.12e-05,2]
[420528390,1776252643229,-340.0,9.12e-05,2]
[420528391,1776252643238,-340.0,9.12e-05,2]
[420528392,1776252643248,-340.0,9.12e-05,2]
[420528393,1776252643258,-340.0,9.12e-05,2]
[420528394,1776252643269,-340.0,9.12e-05,2]
[420528395,1776252643279,-340.0,9.12e-05,2]
[420528396,1776252643288,-340.0,9.12e-05,2]
[420528397,1776252643298,-340.0,9.12e-05,2]
[420528398,1776252643308,-340.0,9.12e-05,2]
[420528399,1776252643317,-340.0,9.12e-05,2]
[420528400,1776252643327,-340.0,9.12e-05,2]
[420528401,1776252643336,-340.0,9.12e-05,2]
[420528402,1776252643346,-340.0,9.12e-05,2]
[420528403,1776252643356,-340.0,9.12e-05,2]
[420528404,1776252643365,-340.0,9.12e-05,2]
[420528405,1776252643375,-340.0,9.12e-05,2]
[420528406,1776252643385,-340.0,9.12e-05,2]
[420528407,1776252643394,-340.0,9.12e-05,2]
[420528408,1776252643404,-374.24813214,9.12e-05,2]
[420528409,1776252643413,-179.0,9.12e-05,2]
[420528410,1776252643422,-179.0,9.12e-05,2]
[420528411,1776252643432,-180.4295316,9.12e-05,2]
[420528412,1776252643442,-300.8543703,9.12e-05,2]
[420528413,1776252643452,-154.033607,9.12e-05,2]
[420528414,1776252643462,-192.139414,9.12e-05,2]
[420528415,1776252643472,-192.139414,9.12e-05,2]
[420528416,1776252643482,-192.139414,9.12e-05,2]
[420528417,1776252643492,-192.13941212,9.12e-05,2]
[420528418,1776252643502,-151.0,9.12e-05,2]
[420528419,1776252643511,-151.0,9.12e-05,2]
[420528420,1776252643521,-2000.0,9.176e-05,2]
[420528421,1776252643530,-2000.0,9.176e-05,2]
[420528422,1776252643540,-2000.0,9.176e-05,2]
[420528423,1776252643551,-800.0,9.414e-05,2]
[420528424,1776252643561,-864.0,9.452e-05,2]
[420528425,1776252643571,-150.13703635,9.495e-05,2]
[420528426,1776252643581,-568.34954262,9.548e-05,2]
[420528427,1776252643591,-1000.0,9.575e-05,2]
[420528428,1776252643601,-151.0,9.589e-05,2]
[420528429,1776252643611,-151.0,9.589e-05,2]
[420528430,1776252643620,-151.0,9.589e-05,2]
[420528431,1776252643630,-151.0,9.589e-05,2]
[420528432,1776252643639,-151.0,9.589e-05,2]
[420528433,1776252643649,-552.47422419,9.604e-05,2]
[420528434,1776252643660,-1711.480407,9.604e-05,2]
[420528435,1776252643670,-9707.153992,9.604e-05,2]
[420528436,1776252643680,-2398.4119403,9.624e-05,2]
[420528437,1776252643689,-998.90117926,9.633e-05,2]
[420528439,1776252643698,-160.0,9.686e-05,2]
[420528441,1776252643708,-160.0,9.686e-05,2]
[420528443,1776252643718,-4797.453456,9.7e-05,30]
[420528444,1776252643727,-2500.0,9.724e-05,2]
[420528446,1776252643736,-2500.0,9.724e-05,2]
[420528447,1776252643745,-2500.0,9.724e-05,2]
[420528448,1776252643756,-160.0,9.739e-05,3]
[420528449,1776252643766,-151.0,9.8e-05,2]
[420528450,1776252643775,-151.0,9.8e-05,2]
[420528451,1776252643785,-151.0,9.8e-05,2]
[420528452,1776252643794,-8207.13135,9.8e-05,2]
[420528453,1776252643804,-232826.89592709,9.8e-05,2]
[420528454,1776252644084,-206265.45201581,9.8e-05,2]
[420528455,1776252644103,-150.0,8.219e-05,2]
[420528456,1776252644113,-57183.46141362,9.8e-05,2]
[420528457,1776252645079,-150.0,8.219e-05,2]
[420528458,1776252645131,-247.19,9.8e-05,2]
[420528462,1776252645371,-0.03958536,9.8e-05,2]
[420528465,1776252645709,-289643.33927403,9.8e-05,2]
[420528477,1776252646541,-150.0,8.219e-05,2]
[420528478,1776252646550,-368.31614946,9.604e-05,2]
[420528479,1776252646560,-8263.87024437,9.8e-05,2]
[420528498,1776253832270,-533.0,8.04e-05,2]
[420528499,1776253832349,-150.0,8.06e-05,2]
[420528501,1776253832434,-820.85861353,8.885e-05,2]
[420528503,1776253832469,-245.27164794,8.895e-05,2]
[420528504,1776253832486,-2150.738,8.895e-05,2]
[420528505,1776253832516,-300.0,8.899e-05,2]
[420528506,1776253832526,-1200.0,8.899e-05,2]
[420528507,1776253832563,-573.644149,8.9e-05,2]
[420528569,1776253838550,-426.355851,8.9e-05,2]
[420528571,1776253838560,-1000.0,8.9e-05,2]
[420528573,1776253838569,-31.73752025,8.9e-05,2]
[420528586,1776253846889,-968.26247975,8.9e-05,2]
[420528587,1776253846915,-1000.0,8.9e-05,2]
[420528588,1776253846955,-1000.0,8.9e-05,2]
[420528589,1776253847002,-263.84314902,8.9e-05,2]
[420528610,1776253848346,-736.15685098,8.9e-05,2]
[420528611,1776253848360,-1000.0,8.9e-05,2]
[420528612,1776253848373,-3932.79291841,8.9e-05,2]
[420528613,1776253848387,-500.0,9.277e-05,2]
[420528614,1776253848400,-2230.315306,9.443e-05,2]
[420528615,1776253848412,-800.0,9.467e-05,2]